bitfinex/quotes_ETHUSD_20251021
["timestamp","ask_amount","ask_price","bid_price","bid_amount"]
[1761087426785,0.001,3910.8,3910.7,5.96208696]
[1761087427076,0.001,3910.8,3910.7,3.405]
[1761087427287,0.001,3910.8,3910.7,5.96208696]
[1761087428580,0.001,3910.8,3910.7,10.44968548]
[1761087428749,0.001,3910.8,3910.7,10.92288548]
[1761087428948,0.001,3910.8,3910.7,7.67321706]
[1761087429265,0.001,3910.8,3910.7,10.92288548]
[1761087430457,0.001,3910.8,3910.7,10.44968548]
[1761087430845,0.001,3910.8,3910.7,10.92288548]
[1761087434199,0.001,3910.8,3910.3,0.10450719]
[1761087434495,0.4658,3910.8,3910.5,0.002]
[1761087435362,0.001,3910.8,3910.7,5.80675538]
[1761087435563,0.001,3910.8,3910.7,9.20675538]
[1761087435763,0.001,3910.8,3910.7,10.43067123]
[1761087435965,0.001,3910.8,3910.7,7.18100281]
[1761087436673,0.001,3910.8,3910.7,4.62391585]
[1761087436879,0.001,3910.8,3910.7,7.18100281]
[1761087437392,0.001,3910.8,3910.7,10.90387123]
[1761087438572,0.001,3910.8,3910.7,10.43067123]
[1761087438799,0.001,3910.8,3910.7,10.90387123]
[1761087439198,0.001,3910.8,3910.7,10.43067123]
[1761087439500,0.001,3910.8,3910.7,7.18100281]
[1761087441905,0.001,3910.8,3910.7,1.22391585]
[1761087442104,0.001,3910.8,3910.7,3.398]
[1761087442306,0.001,3910.8,3910.7,9.20475538]
[1761087442604,0.001,3910.8,3910.7,5.95508696]
[1761087445089,0.001,3910.8,3910.7,6.40178696]
[1761087447515,0.001,3910.8,3910.7,5.95508696]
[1761087447815,0.001,3910.8,3910.7,7.17615127]
[1761087448018,0.001,3910.8,3910.7,4.61906431]
[1761087448219,0.001,3910.8,3910.7,5.95508696]
[1761087453041,0.001,3910.8,3910.7,3.398]
[1761087453217,0.4647,3910.8,3910.7,3.398]
[1761087456250,2.55708696,3910.7,3910.6,0.002]
[1761087456554,0.55787843,3910.7,3910.6,0.002]
[1761087456849,0.4637,3910.7,3910.6,0.002]
[1761087457051,3.02078696,3910.7,3910.6,0.002]
[1761087457755,6.81342557,3910.7,3910.6,0.002]
[1761087458766,8.36862557,3910.7,3910.6,0.002]
[1761087459254,12.12517399,3910.7,3910.6,0.002]
[1761087459556,7.86903156,3910.4,3910.3,0.002]
[1761087459740,8.41200175,3910.4,3910.3,0.002]
[1761087459942,8.87570175,3910.4,3910.3,0.002]
[1761087460342,9.77758075,3910.4,3910.3,0.002]
[1761087460545,12.60042574,3910.4,3910.3,0.002]
[1761087460857,15.06886063,3910.4,3910.3,0.002]
[1761087461235,15.96954737,3910.4,3910.3,0.002]
[1761087461734,16.25677446,3910.4,3910.3,0.002]
[1761087462139,16.25677446,3910.4,3907.1,0.76941917]
[1761087462140,2.55780642,3909.6,3907.1,0.76941917]
[1761087462345,2.55839537,3908.7,3907.6,2.55910328]
[1761087462546,5.80801324,3908.8,3907.2,3.47173926]
[1761087462547,2.55879024,3908.1,3907.2,3.47173926]
[1761087462794,2.59070569,3908.3,3907.4,1.5552]
[1761087462951,0.4637,3908.3,3907.8,2.5589832]
[1761087463277,0.4637,3908.3,3907.4,2.55924655]
[1761087463447,0.4637,3908.3,3907.6,2.55911556]
[1761087463860,0.4637,3908.3,3907.5,0.39183466]
[1761087464048,0.2149,3908.7,3907.5,0.39183466]
[1761087464256,3.02216942,3908.6,3907.8,2.55897986]
[1761087464663,2.55827392,3908.9,3907.9,3.00557429]
[1761087464861,0.4637,3908.9,3908.0,2.558823]
[1761087465068,0.49266917,3909.1,3907.9,0.63965743]
[1761087465069,2.55853487,3908.5,3907.9,0.63965743]
[1761087465243,2.55853487,3908.5,3907.8,5.94998144]
[1761087465572,0.4637,3908.5,3907.8,5.94998144]
[1761087465771,0.4637,3908.5,3907.9,2.55891867]
[1761087466675,0.4637,3908.5,3907.8,3.391]
[1761087466975,0.4637,3908.5,3907.9,2.55890749]
[1761087467173,3.02224201,3908.5,3907.8,3.391]
[1761087467548,0.4637,3908.4,3907.8,3.391]
[1761087468280,0.4637,3908.4,3907.9,2.55889696]
[1761087468489,2.55827112,3908.9,3907.8,3.391]
[1761087468490,0.4637,3908.6,3907.8,3.391]
[1761087468779,0.4637,3908.6,3908.0,2.5588311]
[1761087469354,0.30646864,3909.5,3908.0,1.29758065]
[1761087469555,4.11313867,3909.4,3908.7,2.55836022]
[1761087470484,1.5552,3909.0,3908.4,3.389]
[1761087470652,2.55847437,3908.6,3908.4,3.389]
[1761087470846,2.55838913,3908.8,3907.9,3.391]
[1761087470847,2.55853826,3908.5,3907.9,3.391]
[1761087471646,3.02223826,3908.5,3907.9,3.391]
[1761087472483,3.02229844,3908.4,3907.9,3.391]
[1761087472980,0.4637,3908.4,3907.9,3.391]
[1761087473180,0.03198157,3908.5,3907.9,3.391]
[1761087473418,0.4637,3908.5,3907.9,3.391]
[1761087473604,3.02227091,3908.5,3907.9,3.391]
[1761087473898,2.55885363,3908.0,3907.9,0.002]
[1761087474196,4.58235363,3908.0,3907.9,0.002]
[1761087482900,7.8385193,3908.0,3907.9,0.002]
[1761087484399,8.37724002,3908.0,3907.9,0.002]
[1761087484745,9.80953658,3908.0,3907.9,0.002]
[1761087485702,13.19453658,3908.0,3907.9,0.002]
[1761087486280,14.37629676,3908.0,3907.9,0.002]
[1761087486575,3.29449556,3907.6,3907.5,1e-08]
[1761087486775,13.48595198,3907.6,3907.5,1e-08]
[1761087486969,13.95625198,3907.6,3907.5,1e-08]
[1761087487164,13.0574707,3907.6,3907.5,1e-08]
[1761087487377,13.0574707,3907.6,3907.1,0.002]
[1761087487378,14.41783256,3907.6,3907.1,0.002]
[1761087487580,9.23798508,3907.2,3907.1,0.002]
[1761087487784,14.63022799,3907.2,3907.1,0.002]
[1761087488001,10.48400046,3907.2,3907.1,0.002]
[1761087488166,13.74016613,3907.2,3907.1,0.002]
[1761087488582,13.99611698,3907.2,3907.1,0.002]
[1761087488787,2.56057444,3905.4,3904.9,0.005]
[1761087489130,0.03200614,3905.5,3904.8,0.1365]
[1761087489324,0.71670614,3905.5,3904.8,0.1365]
[1761087489497,2.56055717,3905.4,3904.8,0.1365]
[1761087489684,2.56075748,3905.1,3904.6,0.4345]
[1761087489889,0.2142,3905.5,3904.6,0.4345]
[1761087490087,2.56049571,3905.5,3904.6,3.30878842]
[1761087490300,3.384,3905.6,3904.6,0.7477201]
[1761087490625,1.46952219,3907.2,3905.5,0.1365]
[1761087490626,0.4655,3906.9,3905.5,0.1365]
[1761087490922,2.55936622,3907.3,3906.3,2.55990718]
[1761087491138,0.53866794,3907.2,3905.6,0.4345]
[1761087491342,2.55950188,3907.1,3906.1,2.5600757]
[1761087491489,3.51043402,3907.1,3906.0,2.56015943]
[1761087491689,0.67396844,3907.5,3905.8,0.4345]
[1761087492013,4.69285477,3907.4,3906.3,2.55991858]
[1761087492251,3.92165477,3907.3,3906.4,0.01318406]
[1761087492429,4.9382,3907.3,3906.5,2.55983617]
[1761087492587,1.5552,3907.2,3906.5,2.55983617]
[1761087492922,1.5552,3907.2,3906.6,0.1884]
[1761087492923,0.03199303,3907.1,3906.6,0.1884]
[1761087493143,2.59148439,3907.1,3906.6,0.1884]
[1761087493892,2.5595877,3906.9,3906.3,0.4345]
[1761087494092,2.59158237,3906.9,3906.2,0.1884]
[1761087494641,2.55965232,3906.8,3906.2,0.1884]
[1761087494817,0.03199467,3906.9,3906.2,0.58899]
[1761087495003,2.0231,3907.2,3906.3,0.4345]
[1761087495341,2.0231,3907.2,3906.3,2.99441264]
[1761087495631,2.55944686,3907.1,3906.3,0.4345]
[1761087495834,2.55957647,3906.9,3906.2,0.58899]
[1761087496029,2.55950369,3907.1,3906.2,0.58899]
[1761087496235,2.55950369,3907.1,3906.3,0.4345]
[1761087496434,2.55951652,3907.0,3906.3,0.4345]
[1761087496732,2.55951652,3907.0,3906.3,1.1311577]
[1761087497735,2.59163017,3906.9,3906.2,0.1884]
[1761087497900,2.55952031,3907.0,3906.3,0.4345]
[1761087498107,2.55945906,3907.1,3906.3,2.99445175]
[1761087498433,2.55952011,3907.0,3906.3,0.4345]
[1761087498840,2.55950683,3907.1,3906.3,0.4345]
[1761087499043,0.2285,3907.6,3906.3,1.34710559]
[1761087499225,1.5552,3907.2,3906.5,2.55983617]
[1761087499424,1.5552,3907.2,3906.6,2.55975086]
[1761087499811,1.5552,3907.2,3906.5,2.55981527]
[1761087500142,1.5552,3907.2,3906.5,3.0264225]
[1761087500738,1.5552,3907.2,3906.3,2.55996723]
[1761087501039,3.02294472,3907.1,3906.3,2.55996723]
[1761087501548,3.02294472,3907.1,3906.2,0.1884]
[1761087501549,0.4315,3907.0,3906.2,0.1884]
[1761087501843,2.99102046,3907.0,3906.2,2.74842224]
[1761087502154,2.59144945,3907.1,3906.3,4.3266]
[1761087502306,2.59144945,3907.1,3906.3,6.88655812]
[1761087502510,0.03199303,3907.1,3906.4,2.55990168]
[1761087502705,0.53993101,3907.1,3906.4,2.55990168]
[1761087503011,0.53993101,3907.1,3906.5,3.0264233]
[1761087503216,0.53993264,3907.2,3906.6,2.55977064]
[1761087503624,0.53993264,3907.2,3906.5,2.55981505]
[1761087503863,0.53993264,3907.2,3906.6,2.5597701]
[1761087504169,0.53993264,3907.2,3906.3,3.86]
[1761087504340,1.00783264,3907.2,3906.3,3.86]
[1761087504728,2.59147011,3907.1,3906.3,3.86]
[1761087505226,2.59147011,3907.1,3906.3,6.41995094]
[1761087505428,2.55967423,3906.8,3906.3,3.86]
[1761087505666,0.03199631,3906.7,3906.3,3.86]
[1761087505864,2.5597709,3906.6,3906.3,3.86]
[1761087506030,3.23930185,3906.9,3906.3,3.86]
[1761087506223,3.0275396,3906.8,3906.3,3.86]
[1761087506423,2.5597753,3906.6,3906.3,3.86]
[1761087506865,3.0276753,3906.6,3906.0,3.383]
[1761087507028,1.00835067,3906.5,3904.1,3.86]
[1761087507229,2.56035293,3905.8,3904.6,3.815]
[1761087507463,2.56039229,3905.7,3904.6,4.21015]
[1761087507665,2.56039229,3905.7,3904.9,2.56086452]
[1761087507831,2.56039229,3905.7,3904.6,4.21015]
[1761087507832,2.56039229,3905.7,3904.7,4.5522061]
[1761087508032,3.25171301,3905.8,3905.0,2.56081287]
[1761087508866,3.379,3906.0,3905.1,0.58570731]
[1761087509053,3.378,3906.6,3905.9,2.56016556]
[1761087509363,2.55996977,3906.3,3905.3,2.56062274]
[1761087509545,3.35145169,3906.5,3905.7,2.56030855]
[1761087509753,3.55429945,3906.4,3905.7,2.56030855]
[1761087509933,3.04571443,3906.4,3905.7,2.56030855]
[1761087510135,0.99437271,3906.3,3905.4,2.56053723]
[1761087510428,0.4858004,3906.2,3905.4,2.56054364]
[1761087510855,0.4858004,3906.2,3905.5,2.56049054]
[1761087511544,0.4538,3906.2,3905.5,2.56049054]
[1761087511763,3.378,3906.3,3905.7,2.56035961]
[1761087512131,4.9332,3906.4,3905.7,2.56035961]
[1761087512344,6.01763903,3906.4,3905.7,2.56035961]
[1761087512544,6.01763903,3906.4,3905.6,2.56040864]
[1761087512754,2.56007828,3906.2,3905.4,2.56053829]
[1761087512954,3.01378647,3906.3,3905.5,2.56047678]
[1761087513145,3.01378647,3906.3,3905.3,2.56060692]
[1761087513462,3.0138432,3906.2,3905.4,2.56055717]
[1761087513629,3.0138432,3906.2,3905.3,2.56060692]
[1761087513829,3.0138432,3906.2,3905.4,2.56055717]
[1761087514066,3.0138432,3906.2,3905.5,2.56047364]
[1761087514263,0.4538,3906.2,3905.6,2.56041603]
[1761087514934,0.4538,3906.2,3905.7,2.56035817]
[1761087515861,0.4538,3906.2,3905.6,2.56040733]
[1761087516071,1.36768938,3906.2,3905.4,2.56051044]
[1761087516285,2.56017384,3906.0,3905.2,3.379]
[1761087516451,0.03200286,3905.9,3905.2,5.93963899]
[1761087516635,0.72110286,3905.9,3905.2,3.379]
[1761087516839,4.11563557,3905.6,3905.2,3.379]
[1761087517067,0.03200614,3905.5,3904.8,3.376]
[1761087517276,3.01427607,3905.6,3904.8,3.376]
[1761087517770,2.56051002,3905.5,3904.8,3.376]
[1761087517972,0.73890941,3905.5,3904.8,3.376]
[1761087518270,3.29942762,3905.5,3904.8,3.376]
[1761087518471,0.73890941,3905.5,3904.8,3.376]
[1761087518686,2.5605085,3905.5,3904.8,3.376]
[1761087519573,0.25921767,3905.8,3905.4,0.1365]
[1761087519777,0.25921767,3905.8,3905.1,0.1365]
[1761087520388,0.25921767,3905.8,3905.2,17.06064421]
[1761087520759,0.25921767,3905.8,3905.2,14.5]
[1761087521158,2.81953638,3905.8,3905.2,14.5]
[1761087522685,4.9302,3906.1,3905.3,0.436]
[1761087522893,4.9302,3906.1,3905.4,3.86]
[1761087522894,5.3982,3906.1,3905.4,3.86]
[1761087523088,3.02821666,3906.0,3905.4,3.86]
[1761087523388,2.56024797,3905.9,3905.5,14.5]
[1761087524269,3.02824797,3905.9,3905.5,14.5]
[1761087525090,1.27525637,3905.9,3905.5,14.5]
[1761087525261,5.39073155,3905.9,3905.5,14.5]
[1761087525457,1.05185637,3905.9,3905.5,14.5]
[1761087526593,4.11537219,3906.0,3905.5,14.5]
[1761087526781,1.5552,3906.0,3905.5,14.5]
[1761087527121,0.52314233,3908.8,3905.6,7.68320107]
[1761087527122,0.40148117,3906.9,3905.6,7.68320107]
[1761087527257,0.23909549,3906.8,3905.6,7.234]
[1761087527457,0.40835955,3906.7,3905.6,9.79440824]
[1761087527762,2.55984446,3906.5,3905.7,14.5]
[1761087528169,2.55977093,3906.6,3905.7,14.5]
[1761087528390,3.374,3906.9,3905.7,14.5]
[1761087528391,2.55958503,3906.9,3906.1,2.56003809]
[1761087528582,2.55958503,3906.9,3905.8,0.01319519]
[1761087528583,2.5596665,3906.8,3906.2,3.5624]
[1761087528902,2.55976448,3906.7,3905.2,2.56065575]
[1761087529099,4.6877052,3906.6,3905.1,2.69925244]
[1761087529275,2.55990169,3906.4,3905.1,0.1385]
[1761087529601,2.5603409,3905.8,3905.1,0.1385]
[1761087529893,2.56021262,3906.0,3905.2,2.56068831]
[1761087530095,2.56021262,3906.0,3905.3,2.56060731]
[1761087530460,2.56021262,3906.0,3905.3,2.99660731]
[1761087531299,6.37288319,3906.3,3905.3,2.99660731]
[1761087531300,2.56001482,3906.3,3905.5,2.56043611]
[1761087531597,2.56003631,3906.2,3905.6,0.44919912]
[1761087531762,2.55997199,3906.3,3905.6,2.99640679]
[1761087532070,1.5552,3906.4,3905.7,0.01319813]
[1761087532071,2.5599229,3906.4,3905.7,0.01319813]
[1761087532275,5.3671,3906.6,3905.7,0.44919813]
[1761087532276,2.55997061,3906.3,3905.7,0.44919813]
[1761087532678,2.5600399,3906.2,3905.8,14.5]
[1761087533190,2.55997791,3906.3,3905.8,14.5]
[1761087533565,0.4399,3906.2,3905.8,14.5]
[1761087533768,2.56015084,3906.1,3905.8,14.5]
[1761087534705,0.89317338,3906.3,3905.8,14.9538]
[1761087534870,1.5552,3906.5,3905.9,0.4538]
[1761087535064,2.55991504,3906.4,3905.9,0.4538]
[1761087535269,1.5552,3906.3,3905.8,14.5]
[1761087535602,2.55999619,3906.3,3905.8,14.5]
[1761087536267,1.5552,3906.3,3905.8,14.9538]
[1761087536468,1.5552,3906.3,3905.9,0.4538]
[1761087536699,2.56001557,3906.3,3905.8,14.5]
[1761087536998,2.56007724,3906.2,3905.8,14.5]
[1761087537196,2.99997724,3906.2,3905.8,14.5]
[1761087537364,2.56007724,3906.2,3905.8,14.9538]
[1761087538700,3.30858925,3906.3,3905.8,14.5]
[1761087538915,1.35102423,3906.9,3905.8,14.5]
[1761087539069,3.37,3906.9,3906.2,2.74841413]
[1761087539271,5.92959648,3906.9,3906.2,0.1884]
[1761087539472,1.5552,3906.8,3906.2,0.1884]
[1761087539774,4.1148479,3906.8,3906.2,0.1884]
[1761087540374,4.1148479,3906.8,3906.3,14.5]
[1761087540793,4.1148479,3906.8,3906.4,3.86]
[1761087540794,2.55971682,3906.7,3906.4,3.86]
[1761087540995,4.11486108,3906.8,3906.4,3.86]
[1761087541176,1.5552,3906.8,3906.5,3.37]
[1761087542097,1.5552,3906.8,3906.6,14.5]
[1761087542472,4.11487636,3906.8,3906.6,14.5]
[1761087542667,4.570724,3906.8,3906.6,14.5]
[1761087544102,2.55970512,3906.7,3906.6,14.5]
[1761087544601,2.55970512,3906.7,3906.4,3.86]
[1761087544826,2.55971904,3906.7,3906.4,3.86]
[1761087545323,2.55971904,3906.7,3906.4,18.36]
[1761087545602,3.29590384,3906.7,3906.4,18.36]
[1761087546116,2.55983617,3906.5,3906.4,18.36]
[1761087546322,2.55983617,3906.5,3906.4,3.86]
[1761087548380,2.55978963,3906.6,3906.4,3.86]
[1761087548613,2.55974916,3906.7,3906.4,3.86]
[1761087549022,1.5552,3906.8,3906.4,3.86]
[1761087549330,1.5552,3906.7,3906.4,3.86]
[1761087549511,1.61089505,3906.7,3906.4,3.86]
[1761087549821,2.55983617,3906.5,3906.4,3.86]
[1761087550216,3.00343617,3906.5,3906.4,3.86]
[1761087550985,2.55994094,3906.4,3906.2,3.367]
[1761087551507,2.45899874,3906.7,3906.2,3.367]
[1761087551712,0.90379874,3906.7,3906.2,3.367]
[1761087551913,0.4436,3906.8,3906.2,3.367]
[1761087552113,2.55970512,3906.7,3906.2,3.367]
[1761087552494,2.55970512,3906.7,3906.1,0.1884]
[1761087552692,0.4436,3906.8,3906.1,0.6422]
[1761087552693,2.55977064,3906.6,3906.1,0.6422]
[1761087552901,1.5552,3907.0,3906.2,3.02696783]
[1761087553102,1.5552,3907.0,3906.3,3.367]
[1761087553103,0.78841417,3906.9,3906.3,3.367]
[1761087553307,0.24629467,3906.9,3906.3,3.367]
[1761087553506,2.80587373,3906.9,3906.3,3.367]
[1761087553708,2.55964169,3906.8,3906.3,3.367]
[1761087554297,2.5597164,3906.7,3906.3,3.367]
[1761087555029,0.03199467,3906.9,3906.3,3.367]
[1761087555229,2.0184,3907.0,3906.3,3.8208]
[1761087555430,2.55961836,3906.9,3906.3,3.8208]
[1761087555635,0.001,3907.1,3906.9,2.55957408]
[1761087555933,0.001,3907.1,3907.0,3.365]
[1761087556122,0.001,3907.1,3907.0,17.865]
[1761087556299,0.001,3907.1,3907.0,18.3188]
[1761087556504,0.001,3907.1,3907.0,22.71018857]
[1761087556999,0.001,3907.1,3907.0,20.15068]
[1761087558005,0.001,3907.1,3907.0,18.3188]
[1761087558732,0.001,3907.1,3907.0,20.87830857]
[1761087559871,0.001,3907.1,3907.0,18.3362]
[1761087560007,0.001,3907.1,3907.0,20.89570857]
[1761087561133,0.001,3907.1,3907.0,24.75570857]
[1761087561340,0.001,3907.1,3907.0,27.22414346]
[1761087561939,0.001,3907.1,3907.0,33.58414346]
[1761087562443,0.001,3907.1,3907.0,34.09102346]
[1761087562739,0.001,3907.1,3907.0,33.58414346]
[1761087564851,0.001,3907.1,3907.0,30.55343489]
[1761087565153,0.001,3907.1,3907.0,31.00413489]
[1761087565322,0.001,3907.1,3907.0,33.56364346]
[1761087565655,0.001,3907.1,3907.0,34.07052346]
[1761087567423,0.001,3907.6,3907.3,6.41727889]
[1761087567625,0.001,3907.6,3907.4,4.00372789]
[1761087568156,0.001,3907.6,3907.5,17.50988106]
[1761087569739,0.001,3907.6,3907.5,17.05918106]
[1761087569935,0.001,3907.6,3907.5,17.50988106]
[1761087570125,0.001,3907.6,3907.5,14.5]
[1761087570328,0.001,3907.6,3907.5,15.43739851]
[1761087572164,0.001,3907.6,3907.5,21.70434609]
[1761087572326,0.001,3907.6,3907.5,18.44727957]
[1761087573336,0.001,3907.6,3907.5,28.66527957]
[1761087574530,0.001,3907.6,3907.5,31.92234609]
[1761087574962,0.001,3907.6,3907.5,32.42922609]
[1761087575465,0.001,3907.6,3907.5,29.17215957]
[1761087575661,0.001,3907.6,3907.5,29.94153533]
[1761087578561,0.001,3907.6,3907.5,21.35457957]
[1761087578976,0.001,3907.6,3907.5,21.80527957]
[1761087580480,0.001,3907.6,3907.5,21.35457957]
[1761087581378,0.001,3907.6,3907.5,18.79539851]
[1761087581560,0.001,3907.6,3907.5,21.35457957]
[1761087582266,0.001,3907.6,3907.5,31.57257957]
[1761087585982,0.001,3907.6,3907.5,32.02327957]
[1761087586780,0.001,3907.6,3907.5,32.6327551]
[1761087588181,0.001,3908.0,3907.9,2.55891911]
[1761087588365,0.001,3908.0,3907.9,16.78784188]
[1761087588565,0.001,3908.0,3907.9,17.23854188]
[1761087588962,0.001,3908.0,3907.9,31.73854188]
[1761087590387,0.001,3908.0,3907.9,31.28784188]
[1761087591616,0.001,3908.0,3907.9,31.73854188]
[1761087591901,0.001,3908.0,3907.9,31.28784188]
[1761087592708,0.001,3908.0,3907.9,31.73854188]
[1761087593503,0.001,3908.0,3907.9,32.20774188]
[1761087594231,0.001,3908.4,3908.2,2.55872268]
[1761087594528,0.001,3908.4,3908.3,6.55312948]
[1761087595331,0.001,3908.4,3908.3,3.99447227]
[1761087595490,0.001,3908.4,3908.3,6.55312948]
[1761087596492,0.001,3908.4,3908.3,3.99447227]
[1761087596703,0.4326,3908.4,3908.3,3.353]
[1761087598088,0.4326,3908.4,3908.3,17.853]
[1761087600091,0.4326,3908.4,3908.3,21.709]
[1761087600321,0.001,3908.4,3908.3,24.26765721]
[1761087600923,0.001,3908.4,3908.3,21.709]
[1761087601249,0.4326,3908.4,3908.3,21.709]
[1761087601455,2.99119175,3908.4,3907.6,0.002]
[1761087601746,2.99119175,3908.4,3907.6,3.353]
[1761087601747,0.2141,3907.7,3907.6,3.353]
[1761087602048,2.77315008,3907.7,3907.6,0.002]
[1761087602203,2.77315008,3907.7,3907.2,0.002]
[1761087602204,2.55931205,3907.3,3907.2,0.002]
[1761087602390,3.53331171,3907.3,3907.2,0.002]
[1761087602588,4.46827239,3907.3,3907.2,0.002]
[1761087602992,0.54239966,3907.3,3907.2,0.002]
[1761087603248,0.4316,3907.6,3907.2,3.352]
[1761087603605,0.4316,3907.6,3907.3,2.55931205]
[1761087603935,0.4316,3907.6,3907.2,3.352]
[1761087603936,2.55931205,3907.3,3907.2,0.002]
[1761087604235,6.24797857,3907.3,3907.2,0.002]
[1761087604443,7.13189351,3907.3,3907.2,0.002]
[1761087604731,7.90166213,3907.3,3907.2,0.002]
[1761087605141,4.64459561,3907.3,3907.2,0.002]
[1761087606546,0.4316,3907.3,3907.2,0.002]
[1761087607003,0.2141,3907.7,3907.2,0.002]
[1761087607336,0.4316,3907.6,3907.2,0.002]
[1761087607543,0.2141,3907.7,3907.2,0.002]
[1761087608032,2.7729354,3908.1,3907.3,2.55925023]
[1761087608243,3.68866652,3907.9,3907.2,0.002]
[1761087608443,2.55931205,3907.3,3907.2,0.002]
[1761087608930,2.99091205,3907.3,3907.2,0.002]
[1761087610533,3.02290345,3907.3,3907.2,0.002]
[1761087610850,2.99091205,3907.3,3907.2,0.002]
[1761087611036,3.88082596,3907.3,3907.2,0.002]
[1761087612645,3.91281736,3907.3,3907.2,0.002]
[1761087613356,3.88082596,3907.3,3907.2,0.002]
[1761087613755,7.71344993,3907.3,3907.2,0.002]
[1761087614335,3.88082596,3907.3,3907.2,0.002]
[1761087614772,5.43602596,3907.3,3907.2,0.002]
[1761087620279,9.26864993,3907.3,3907.2,0.002]
[1761087622291,2.81314202,3907.2,3904.7,0.4309]
[1761087622490,3.83262397,3906.2,3904.9,0.44]
[1761087622692,2.56057926,3905.4,3905.0,14.5]
[1761087623486,2.56057926,3905.4,3905.1,0.1365]
[1761087623991,2.56051311,3905.5,3905.1,0.1365]
[1761087624282,0.2244,3905.8,3905.2,14.5]
[1761087624490,2.56068216,3905.3,3904.9,0.44]
[1761087624997,2.99926998,3905.7,3904.3,1.55717945]
[1761087625153,2.99926998,3905.7,3904.3,0.00197945]
[1761087625154,2.56084804,3905.0,3904.3,0.00197945]
[1761087625355,0.4389,3905.2,3904.3,0.00197945]
[1761087625549,1.5552,3905.7,3904.4,0.4731]
[1761087625783,5.90630085,3905.8,3904.7,2.56099398]
[1761087625983,5.90630085,3905.8,3904.9,2.56087604]
[1761087625984,4.11563879,3905.6,3904.9,2.56087604]
[1761087626184,2.56023158,3905.9,3904.9,1.31989197]
[1761087626185,0.2326,3905.9,3904.9,1.31989197]
[1761087626387,3.346,3905.9,3905.1,2.56071602]
[1761087626664,2.56024391,3905.9,3905.2,2.56066658]
[1761087626854,4.9012,3906.0,3905.1,0.1365]
[1761087627166,7.46137603,3906.0,3905.1,0.1365]
[1761087627489,4.11537603,3906.0,3905.2,3.03377476]
[1761087627698,2.56024274,3905.9,3905.2,3.03377476]
[1761087628084,2.56016103,3906.1,3905.3,14.9731]
[1761087628287,2.56016103,3906.1,3905.4,2.56054009]
[1761087628485,2.56016103,3906.1,3905.4,3.03364009]
[1761087628673,2.56016103,3906.1,3905.4,0.4731]
[1761087628878,2.56016103,3906.1,3905.4,3.66404305]
[1761087629098,3.5704,3906.3,3905.5,14.5]
[1761087629401,2.56042605,3905.6,3905.5,14.5]
[1761087629894,2.56042605,3905.6,3904.3,2.56324344]
[1761087629895,0.4369,3905.6,3904.3,2.56324344]
[1761087630095,2.5607452,3905.2,3904.4,3.60232434]
[1761087630397,4.06522397,3905.8,3904.5,14.9731]
[1761087630596,3.3780045,3905.7,3904.6,3.0341818]
[1761087630893,2.56061952,3905.4,3904.6,3.0341818]
[1761087631310,2.56061952,3905.4,3904.7,14.5]
[1761087631599,2.56080351,3905.1,3904.7,14.5]
[1761087631766,2.56070625,3905.2,3904.7,14.5]
[1761087631967,2.56064093,3905.3,3904.7,14.5]
[1761087632194,0.4369,3905.6,3904.7,14.5]
[1761087632394,2.56075109,3905.2,3904.7,14.5]
[1761087632799,2.56056837,3905.4,3904.7,14.5]
[1761087633000,2.56062377,3905.3,3904.7,14.9731]
[1761087633402,0.4369,3905.6,3904.7,14.5]
[1761087633696,2.56074841,3905.2,3904.7,14.5]
[1761087634194,0.46890942,3905.1,3904.4,3.346]
[1761087634383,0.4369,3905.1,3904.4,3.346]
[1761087634598,2.56106819,3904.7,3904.4,3.346]
[1761087635117,2.56096071,3904.8,3904.4,3.346]
[1761087635721,2.5610818,3904.6,3904.3,0.00197945]
[1761087636219,0.4347,3904.8,3904.3,0.00197945]
[1761087636220,2.5609697,3904.8,3904.3,0.00197945]
[1761087636519,0.2244,3906.3,3904.4,0.4731]
[1761087636520,2.56068831,3905.2,3904.4,0.4731]
[1761087636719,2.56042605,3905.6,3904.5,3.345]
[1761087636921,2.56066869,3905.3,3904.6,2.56103015]
[1761087637125,2.56066869,3905.3,3904.6,3.03413015]
[1761087637310,4.51688752,3906.1,3904.5,3.345]
[1761087637311,0.4015494,3906.1,3904.5,3.345]
[1761087637499,0.0320045,3905.7,3904.7,0.4731]
[1761087637698,0.0320045,3905.7,3904.5,3.345]
[1761087637887,2.56042605,3905.6,3904.6,17.53418011]
[1761087638092,2.56055717,3905.4,3904.6,14.9731]
[1761087638417,2.56068831,3905.2,3904.6,14.5]
[1761087638618,2.56077022,3905.1,3904.6,14.5]
[1761087638840,2.56068383,3905.3,3904.6,14.5]
[1761087639121,3.344,3905.6,3904.7,3.03411426]
[1761087639325,3.344,3905.6,3904.6,1.83210795]
[1761087639326,2.56062361,3905.3,3904.6,1.83210795]
[1761087639524,2.5927493,3905.2,3904.5,3.344]
[1761087639694,2.56049987,3905.5,3904.6,14.9731]
[1761087640004,2.56062719,3905.3,3904.6,17.5341727]
[1761087640500,0.0320086,3905.2,3904.6,14.5]
[1761087640827,3.344,3905.6,3904.6,14.5]
[1761087640828,2.56055717,3905.4,3904.6,14.5]
[1761087641130,2.560577,3905.4,3904.7,2.56101341]
[1761087641351,2.56063344,3905.3,3904.7,3.03411341]
[1761087641823,0.03200614,3905.5,3904.5,3.344]
[1761087642001,2.59256413,3905.4,3904.5,3.344]
[1761087642524,2.56067673,3905.3,3904.6,2.56108121]
[1761087642753,3.344,3905.7,3904.6,1.38065073]
[1761087642929,5.90438067,3905.7,3904.8,2.56094377]
[1761087643250,5.90438067,3905.7,3904.7,0.4731]
[1761087643251,3.7545,3905.7,3904.9,3.343]
[1761087643545,2.56063474,3905.3,3904.9,3.343]
[1761087643914,2.56057976,3905.4,3904.9,3.343]